bitfinex-derivatives/quotes_BTCF0:USTF0_20250608
["timestamp","ask_amount","ask_price","bid_price","bid_amount"]
[1749400059163,0.46592,106050.0,106040.0,0.64802971]
[1749400059560,0.46592,106050.0,106040.0,0.6340112]
[1749400059859,0.46592,106050.0,106040.0,0.64804477]
[1749400060062,0.46592,106050.0,106040.0,0.65209667]
[1749400060270,0.46592,106050.0,106040.0,0.63805998]
[1749400060765,0.46592,106050.0,106040.0,0.65211072]
[1749400060967,0.46592,106050.0,106040.0,0.64806194]
[1749400061367,0.46592,106050.0,106040.0,0.79444034]
[1749400061574,0.6544171,106050.0,106040.0,0.6533128]
[1749400061869,0.89454226,106050.0,106040.0,0.95022064]
[1749400062169,0.91374693,106050.0,106040.0,0.95026965]
[1749400062362,0.91374693,106050.0,106040.0,0.78980782]
[1749400062563,0.91374693,106050.0,106040.0,0.80386083]
[1749400062765,0.91374693,106050.0,106040.0,1.14861706]
[1749400062964,0.91374693,106050.0,106040.0,1.33712992]
[1749400063164,0.91374693,106050.0,106040.0,1.33714094]
[1749400063360,0.89454226,106050.0,106040.0,1.13454824]
[1749400063960,0.70604516,106050.0,106040.0,1.32306284]
[1749400064157,0.46592,106050.0,106040.0,1.32306284]
[1749400064360,0.46592,106050.0,106040.0,1.80386598]
[1749400064969,0.46592,106050.0,106040.0,1.57778585]
[1749400065174,0.46592,106050.0,106040.0,1.57778622]
[1749400065668,0.46592,106050.0,106040.0,1.56374082]
[1749400066259,0.46592,106050.0,106040.0,1.57778601]
[1749400066463,0.46592,106050.0,106040.0,1.57771242]
[1749400066665,0.3628,106050.0,106040.0,1.57770752]
[1749400066872,0.46688,106050.0,106040.0,1.56374082]
[1749400067265,0.46688,106050.0,106040.0,1.57771035]
[1749400067465,0.46688,106050.0,106040.0,1.56374082]
[1749400067779,0.34748446,106050.0,106040.0,1.41736242]
[1749400067971,0.45156446,106050.0,106040.0,1.41736242]
[1749400068171,0.34748446,106050.0,106040.0,1.43135038]
[1749400068373,0.45156446,106050.0,106040.0,1.41736242]
[1749400068768,0.45156446,106050.0,106040.0,1.43133376]
[1749400068967,0.45156446,106050.0,106040.0,1.41736242]
[1749400069167,0.45156446,106050.0,106040.0,1.92935461]
[1749400069367,0.45156446,106050.0,106040.0,1.92923935]
[1749400069767,0.45156446,106050.0,106040.0,1.63664157]
[1749400069966,0.45156446,106050.0,106040.0,1.62280045]
[1749400070164,0.45156446,106050.0,106040.0,1.64069032]
[1749400070370,0.45156446,106050.0,106040.0,1.64070115]
[1749400070569,0.45156446,106050.0,106040.0,1.4214112]
[1749400070875,0.45156446,106050.0,106040.0,1.435266]
[1749400071071,0.45156446,106050.0,106040.0,1.4214112]
[1749400071271,0.45156446,106050.0,106040.0,1.43526521]
[1749400071467,0.69168962,106050.0,106040.0,1.4214112]
[1749400071775,0.69168962,106050.0,106040.0,1.43530297]
[1749400071970,0.71051161,106050.0,106040.0,1.43530297]
[1749400072175,0.69168962,106050.0,106040.0,1.43530582]
[1749400072478,0.69168962,106050.0,106040.0,1.4214112]
[1749400073279,0.69168962,106050.0,106040.0,1.43529782]
[1749400073472,0.69168962,106050.0,106040.0,1.4214112]
[1749400073873,0.70700516,106050.0,106040.0,1.43529489]
[1749400074179,0.46688,106050.0,106040.0,1.4214112]
[1749400074379,0.46688,106050.0,106040.0,1.4352956]
[1749400074680,0.46688,106050.0,106040.0,1.43529559]
[1749400074881,0.10608,106050.0,106040.0,1.43525756]
[1749400075081,0.46688,106050.0,106040.0,1.4214112]
[1749400075483,0.46688,106050.0,106040.0,1.43527207]
[1749400075679,0.002,106050.0,106040.0,1.43527207]
[1749400075884,0.46688,106050.0,106040.0,1.4214112]
[1749400076271,0.46688,106050.0,106040.0,1.43526837]
[1749400076476,0.46688,106050.0,106040.0,1.4214112]
[1749400076876,0.46688,106050.0,106040.0,1.43526949]
[1749400077079,0.46688,106050.0,106040.0,1.43526948]
[1749400077275,0.46688,106050.0,106040.0,1.4214112]
[1749400077472,0.46688,106050.0,106040.0,0.99623388]
[1749400077678,0.45769071,106050.0,106040.0,1.43387388]
[1749400077883,0.45769071,106050.0,106040.0,1.4200112]
[1749400078283,0.45769071,106050.0,106040.0,1.43387395]
[1749400078486,0.45769071,106050.0,106040.0,1.4200112]
[1749400078783,0.45769071,106050.0,106040.0,1.43387464]
[1749400078984,0.45769071,106050.0,106040.0,1.4200112]
[1749400079180,0.45769071,106050.0,106040.0,1.43387464]
[1749400079380,0.45769071,106050.0,106040.0,1.43387463]
[1749400079580,0.45769071,106050.0,106040.0,1.43387446]
[1749400079783,0.45769071,106050.0,106040.0,1.4200112]
[1749400079981,0.45769071,106050.0,106040.0,1.43379847]
[1749400080187,0.45769071,106050.0,106040.0,1.4200112]
[1749400080879,0.10408,106050.0,106040.0,1.4200112]
[1749400081079,0.10408,106050.0,106040.0,1.4337668]
[1749400081279,0.10408,106050.0,106040.0,1.43376193]
[1749400081481,0.10408,106050.0,106040.0,1.43376032]
[1749400081682,0.10408,106050.0,106040.0,1.43375909]
[1749400082080,0.10408,106050.0,106040.0,1.4200112]
[1749400082582,0.46488,106050.0,106040.0,1.4200112]
[1749400082888,0.46488,106050.0,106040.0,1.43378908]
[1749400083077,0.88048,106050.0,106040.0,1.43379019]
[1749400083287,0.88048,106050.0,106040.0,1.42974141]
[1749400083482,1.12060516,106050.0,106040.0,1.42974158]
[1749400083881,1.12060516,106050.0,106040.0,1.41596242]
[1749400084188,1.12060516,106050.0,106040.0,1.42972933]
[1749400084388,1.12060516,106050.0,106040.0,1.43377811]
[1749400084579,1.12060516,106050.0,106040.0,1.4200112]
[1749400084777,1.12060516,106050.0,106040.0,1.43378097]
[1749400085180,1.12060516,106050.0,106040.0,1.4200112]
[1749400085387,1.12060516,106050.0,106040.0,1.43378094]
[1749400085691,1.12060516,106050.0,106040.0,1.43378047]
[1749400085894,1.12060516,106050.0,106040.0,1.4200112]
[1749400086188,1.12060516,106050.0,106040.0,1.43378992]
[1749400086384,1.12060516,106050.0,106040.0,1.42974185]
[1749400086595,1.12060516,106050.0,106040.0,1.42974177]
[1749400086800,1.12060516,106050.0,106040.0,1.41596242]
[1749400086994,1.12060516,106050.0,106040.0,1.42974181]
[1749400087197,0.88048,106050.0,106040.0,1.41596242]
[1749400087393,0.88048,106050.0,106040.0,0.69925041]
[1749400087590,0.88048,106050.0,106040.0,1.13580139]
[1749400087790,0.51049079,106050.0,106040.0,1.1220312]
[1749400088193,0.51049079,106050.0,106040.0,1.1355885]
[1749400088398,0.51049079,106050.0,106040.0,1.13558833]
[1749400088596,0.51049079,106050.0,106040.0,1.42818609]
[1749400088795,0.51049079,106050.0,106040.0,1.41462896]
[1749400089002,0.51049079,106050.0,106040.0,1.42818609]
[1749400089298,0.7882,106060.0,106050.0,0.188496]
[1749400089497,1.11952,106060.0,106050.0,0.188496]
[1749400089693,0.75872,106060.0,106050.0,0.465296]
[1749400089996,1.11952,106060.0,106050.0,0.55959558]
[1749400090204,1.11952,106060.0,106050.0,0.68969558]
[1749400090401,0.9233,106060.0,106050.0,1.06925711]
[1749400090700,1.02738,106060.0,106050.0,1.06925711]
[1749400091299,0.7902,106060.0,106050.0,1.30938227]
[1749400091504,0.89428,106060.0,106050.0,1.30938227]
[1749400091806,0.89428,106060.0,106050.0,1.06925711]
[1749400092007,1.15948,106060.0,106050.0,1.06925711]
[1749400092511,0.89628,106060.0,106050.0,1.06925711]
[1749400093609,0.89628,106060.0,106050.0,0.68969558]
[1749400094204,0.89628,106060.0,106050.0,0.98350285]
[1749400095410,0.88388,106060.0,106050.0,0.98350285]
[1749400096507,0.46888,106060.0,106050.0,0.98350285]
[1749400096811,0.46888,106060.0,106050.0,1.41954285]
[1749400097107,0.46888,106060.0,106050.0,1.12573558]
[1749400097507,0.46888,106060.0,106050.0,1.42263558]
[1749400098503,0.46888,106060.0,106050.0,1.71644285]
[1749400099205,0.89748336,106060.0,106050.0,0.87350285]
[1749400099416,0.97240516,106060.0,106050.0,1.30930285]
[1749400099609,1.16088336,106060.0,106050.0,0.87350285]
[1749400099815,1.16088336,106060.0,106050.0,1.01545558]
[1749400100016,0.61024516,106060.0,106050.0,1.01545558]
[1749400100207,0.61024516,106060.0,106050.0,1.14671558]
[1749400100517,0.73092,106060.0,106050.0,1.44457163]
[1749400100808,0.73092,106060.0,106050.0,1.65016539]
[1749400101117,0.23692,106060.0,106050.0,1.65016539]
[1749400101313,0.23692,106060.0,106050.0,1.62415812]
[1749400102416,0.10672,106060.0,106050.0,1.86428328]
[1749400103615,0.10672,106060.0,106050.0,1.65868952]
[1749400104309,0.10672,106060.0,106050.0,1.95236671]
[1749400104913,0.10672,106060.0,106050.0,1.65868952]
[1749400107119,0.10672,106060.0,106050.0,2.01948952]
[1749400107418,0.10672,106060.0,106050.0,2.39905105]
[1749400107627,0.51436868,106070.0,106060.0,0.1884783]
[1749400107921,0.61708868,106070.0,106060.0,0.76842525]
[1749400108222,0.61708868,106070.0,106060.0,0.86271594]
[1749400108522,0.61708868,106070.0,106060.0,0.41706899]
[1749400108727,0.61708868,106070.0,106060.0,0.7106922]
[1749400108922,0.62108868,106070.0,106060.0,0.7106922]
[1749400109118,0.62408868,106070.0,106060.0,0.7106922]
[1749400109516,0.62408868,106070.0,106060.0,0.41706899]
[1749400110522,0.38794868,106070.0,106060.0,1.01799415]
[1749400110722,0.12014868,106070.0,106060.0,1.45799415]
[1749400110925,0.0669,106080.0,106070.0,0.2826839]
[1749400111231,0.0669,106080.0,106070.0,2.06908264]
[1749400111417,0.4019,106090.0,106080.0,0.1884428]
[1749400111718,0.59876,106090.0,106080.0,0.6181428]
[1749400111921,0.59876,106090.0,106080.0,0.91142278]
[1749400112120,0.50462,106090.0,106080.0,1.0056957]
[1749400112423,0.50562,106090.0,106080.0,1.0056957]
[1749400112729,0.50562,106090.0,106080.0,1.21093058]
[1749400112932,0.50662,106090.0,106080.0,1.21093058]
[1749400113230,0.4039,106090.0,106080.0,1.81185574]
[1749400113524,0.34686629,106110.0,106100.0,0.1884074]
[1749400113728,0.95288629,106110.0,106100.0,0.90382889]
[1749400114234,0.9721498,106110.0,106100.0,0.99809292]
[1749400114422,0.9721498,106110.0,106100.0,0.93938637]
[1749400114624,0.9721498,106110.0,106100.0,0.99809292]
[1749400115333,0.9731498,106110.0,106100.0,0.99809292]
[1749400115732,1.21327496,106110.0,106100.0,0.99809292]
[1749400116124,1.40166456,106110.0,106100.0,0.71570149]
[1749400116328,1.40166456,106110.0,106100.0,0.8622413]
[1749400116526,1.40166456,106110.0,106100.0,0.8626813]
[1749400116831,1.40166456,106110.0,106100.0,0.65756978]
[1749400117131,1.40166456,106110.0,106100.0,0.84597808]
[1749400118232,1.40166456,106110.0,106100.0,0.84585808]
[1749400120132,1.40166456,106110.0,106100.0,0.69955827]
[1749400122033,1.40166456,106110.0,106100.0,0.07510997]
[1749400122235,1.40166456,106110.0,106100.0,0.6241677]
[1749400123435,1.40166456,106110.0,106100.0,0.69896355]
[1749400124830,0.50434,106110.0,106100.0,1.39413497]
[1749400125032,0.001,106110.0,106100.0,1.83413497]
[1749400125234,0.10368,106110.0,106100.0,2.17234649]
[1749400125534,0.10368,106110.0,106100.0,1.96723497]
[1749400126236,0.001,106110.0,106100.0,1.96723497]
[1749400126436,0.10368,106110.0,106100.0,1.96723497]
[1749400126636,0.10368,106110.0,106100.0,1.72710981]
[1749400126934,0.10368,106110.0,106100.0,1.96723497]
[1749400127236,0.10368,106110.0,106100.0,1.60743497]
[1749400127538,0.10368,106110.0,106100.0,1.36730981]
[1749400127936,0.10268,106110.0,106100.0,1.36730981]
[1749400128135,0.10268,106110.0,106100.0,1.36830981]
[1749400128323,0.10268,106110.0,106100.0,1.57280041]
[1749400128728,0.23588,106110.0,106100.0,1.57280041]
[1749400131038,0.23588,106110.0,106100.0,1.57684919]
[1749400132437,0.23588,106110.0,106100.0,1.59464919]
[1749400134141,0.10268,106110.0,106100.0,1.59464919]
[1749400136237,0.10268,106110.0,106100.0,1.83477435]
[1749400138543,0.10268,106110.0,106100.0,1.63028375]
[1749400138838,0.10268,106110.0,106100.0,1.83510317]
[1749400139040,0.10268,106110.0,106100.0,1.19452375]
[1749400139342,0.79774516,106110.0,106100.0,1.22401815]
[1749400139539,1.26493546,106110.0,106100.0,1.22397815]
[1749400139737,1.26493546,106110.0,106100.0,1.03565045]
[1749400139943,1.26493546,106110.0,106100.0,1.16556365]
[1749400140641,1.26693546,106110.0,106100.0,1.16448365]
[1749400141036,1.26693546,106110.0,106100.0,0.67917565]
[1749400141342,1.26693546,106110.0,106100.0,0.67512687]
[1749400142031,1.26693546,106110.0,106100.0,0.86253487]
[1749400142233,1.26893546,106110.0,106100.0,0.86646365]
[1749400142639,1.26893546,106110.0,106100.0,0.24305565]
[1749400142852,1.26893546,106110.0,106100.0,0.86642365]
[1749400143147,1.26893546,106110.0,106100.0,0.92491845]
[1749400143332,1.36318346,106110.0,106100.0,0.30155045]
[1749400143533,1.36318346,106110.0,106100.0,0.63656792]
[1749400143746,1.36318346,106110.0,106100.0,0.4316621]
[1749400146640,1.26904346,106110.0,106100.0,0.4316621]
[1749400146844,1.36318346,106110.0,106100.0,0.4316621]
[1749400147543,1.26904346,106110.0,106100.0,0.4316621]
[1749400147748,1.26893546,106110.0,106100.0,0.4316621]
[1749400149645,1.26893546,106110.0,106100.0,0.2432538]
[1749400150245,1.26893546,106110.0,106100.0,0.4316633]
[1749400150851,1.0288103,106110.0,106100.0,0.4316633]
[1749400151051,1.26893546,106110.0,106100.0,0.4316633]
[1749400152254,1.26893546,106110.0,106100.0,0.09664463]
[1749400155357,1.26893546,106110.0,106100.0,0.28505303]
[1749400156449,0.9261303,106110.0,106100.0,0.28505303]
[1749400156651,1.26893546,106110.0,106100.0,0.28505303]
[1749400157654,1.26893546,106110.0,106100.0,0.4316622]
[1749400162952,1.26805546,106110.0,106100.0,0.4316622]
[1749400164060,1.26805546,106110.0,106100.0,0.2432538]
[1749400164259,1.16625546,106110.0,106100.0,0.2432538]
[1749400164447,1.26805546,106110.0,106100.0,0.2432538]
[1749400164647,1.26805546,106110.0,106100.0,0.4316622]
[1749400165953,1.26805546,106110.0,106100.0,0.2432538]
[1749400166152,1.26805546,106110.0,106100.0,0.4316622]
[1749400167860,1.26805546,106110.0,106100.0,0.2432538]
[1749400168060,1.26805546,106110.0,106100.0,0.4316622]
[1749400168856,1.26805546,106110.0,106100.0,0.2432538]
[1749400169261,1.26805546,106110.0,106100.0,0.09664463]
[1749400169456,1.26805546,106110.0,106100.0,0.30155045]
[1749400173664,0.90725546,106110.0,106100.0,0.30155045]
[1749400173961,1.62885546,106110.0,106100.0,0.30155045]
[1749400174362,1.62885546,106110.0,106100.0,0.09664463]
[1749400175664,1.62885546,106110.0,106100.0,0.09259585]
[1749400176557,1.62885546,106110.0,106100.0,0.09664463]
[1749400187273,1.62885546,106110.0,106100.0,0.30155045]
[1749400188975,2.05625546,106110.0,106100.0,0.30155045]
[1749400189177,2.05625546,106110.0,106100.0,0.44845744]
[1749400189572,2.05625546,106110.0,106100.0,0.24355162]
[1749400192280,2.05625546,106110.0,106100.0,0.09664463]
[1749400193473,2.48921546,106110.0,106100.0,0.30155045]
[1749400194674,2.48921546,106110.0,106100.0,0.09664463]
[1749400195479,2.48921546,106110.0,106100.0,0.30155045]
[1749400200080,1.95445546,106110.0,106100.0,0.30155045]
[1749400200281,2.48857546,106110.0,106100.0,0.30155045]
[1749400200587,1.95445546,106110.0,106100.0,0.30155045]
[1749400200987,2.48857546,106110.0,106100.0,0.30155045]
[1749400201189,1.95445546,106110.0,106100.0,0.48995875]
[1749400201489,2.34927546,106110.0,106100.0,0.30155045]
[1749400201685,2.34927546,106110.0,106100.0,0.72135045]
[1749400201686,1.67565546,106110.0,106100.0,0.72135045]
[1749400201884,1.9696503,106110.0,106100.0,0.90975875]
[1749400202085,2.20977546,106110.0,106100.0,0.90975875]
[1749400202889,1.77681546,106110.0,106100.0,0.90975875]
[1749400204097,1.77681546,106110.0,106100.0,0.72135045]
[1749400204594,1.77681546,106110.0,106100.0,0.51644463]
[1749400204791,1.68267546,106110.0,106100.0,0.37394463]
[1749400204995,2.04391546,106110.0,106100.0,0.09664463]
[1749400205296,2.04391546,106110.0,106100.0,0.24356189]
[1749400205996,2.04391546,106110.0,106100.0,0.23951311]
[1749400206188,2.04391546,106110.0,106100.0,0.09259585]
[1749400206493,2.04391546,106110.0,106100.0,0.23952168]
[1749400207294,2.04391546,106110.0,106100.0,0.09259585]
[1749400208294,0.1884084,106100.0,106090.0,0.20490582]
[1749400208491,0.1884262,106090.0,106080.0,0.29327998]
[1749400208789,1.24805136,106090.0,106080.0,0.29327998]
[1749400209088,1.24805136,106090.0,106080.0,0.20581466]
[1749400209990,1.48817652,106090.0,106080.0,0.20581466]
[1749400210190,1.48817652,106090.0,106080.0,0.20681466]
[1749400210386,1.48817652,106090.0,106080.0,0.14781504]
[1749400210591,1.0079262,106090.0,106080.0,0.14881504]
[1749400210791,1.24805136,106090.0,106080.0,0.3546297]
[1749400211496,1.24805136,106090.0,106080.0,0.14881504]
[1749400211697,1.25105136,106090.0,106080.0,0.14781504]
[1749400211897,1.25105136,106090.0,106080.0,0.14681504]
[1749400212090,1.25305136,106090.0,106080.0,0.14681504]
[1749400213098,1.25305136,106090.0,106080.0,0.15086382]
[1749400214300,1.25305136,106090.0,106080.0,0.11734662]
[1749400216697,1.39901432,106090.0,106070.0,0.14695664]
[1749400217001,0.4239567,106070.0,106060.0,0.10166404]
[1749400217203,0.1884794,106060.0,106050.0,0.20616466]
[1749400217394,1.72880456,106060.0,106050.0,0.20616466]
[1749400218001,1.72880456,106060.0,106050.0,0.00035]
[1749400218503,1.72880456,106060.0,106050.0,0.00135]
[1749400218798,1.72880456,106060.0,106050.0,0.00235]
[1749400219301,1.72880456,106060.0,106050.0,0.00639878]
[1749400225304,1.5899194,106060.0,106050.0,0.19489648]
[1749400225505,1.83004456,106060.0,106050.0,0.19489648]
[1749400225702,0.6504394,106060.0,106050.0,0.19489648]
[1749400226004,0.6504394,106060.0,106050.0,0.60019648]
[1749400226207,0.89056456,106060.0,106050.0,0.74649662]
[1749400226901,0.46196,106060.0,106050.0,0.74649662]
[1749400227101,0.6504388,106060.0,106050.0,1.17953662]
[1749400227906,0.6504388,106060.0,106050.0,1.47643662]
[1749400228099,0.46196,106060.0,106050.0,1.47643662]
[1749400228300,0.3608,106060.0,106050.0,1.81085247]
[1749400228496,0.3608,106060.0,106050.0,1.75884033]
[1749400228699,0.6504386,106060.0,106050.0,1.96465499]
[1749400228903,0.10116,106060.0,106050.0,1.96465499]
[1749400230003,0.99592115,106070.0,106060.0,0.1884799]
[1749400230203,1.09707145,106070.0,106060.0,0.6145743]
[1749400231411,1.09707145,106070.0,106060.0,0.82038896]
[1749400232110,0.90860935,106070.0,106060.0,0.82038896]
[1749400232498,0.90860935,106070.0,106060.0,0.67409456]
[1749400232910,1.09707145,106070.0,106060.0,0.67409456]
[1749400233711,1.09707145,106070.0,106060.0,0.97099456]
[1749400234203,1.09707145,106070.0,106060.0,0.91158738]
[1749400234514,1.09707145,106070.0,106060.0,1.34462738]
[1749400236404,1.09707145,106070.0,106060.0,1.34867616]
[1749400237005,1.33719661,106070.0,106060.0,1.34867616]
[1749400237414,1.33719661,106070.0,106060.0,1.40808334]
[1749400237812,1.33719661,106070.0,106060.0,0.97504334]
[1749400238111,1.33719661,106070.0,106060.0,1.40804334]
[1749400238308,1.84953661,106070.0,106060.0,0.50676344]
[1749400238613,1.84953661,106070.0,106060.0,0.63610761]
[1749400239512,1.84953661,106070.0,106060.0,0.44762851]
[1749400239809,1.75539661,106070.0,106060.0,0.44762851]
[1749400240015,1.84953661,106070.0,106060.0,0.44762851]
[1749400240510,2.21033661,106070.0,106060.0,0.44762851]
[1749400240916,2.64333661,106070.0,106060.0,0.44762851]
[1749400241815,2.64333661,106070.0,106060.0,0.30094878]
[1749400242315,2.64333661,106070.0,106060.0,0.50676344]
[1749400242516,2.64333661,106070.0,106060.0,0.65349012]
[1749400242813,2.64333661,106070.0,106060.0,0.44767546]
[1749400243118,2.64333661,106070.0,106060.0,0.63615456]
[1749400243408,2.64333661,106070.0,106060.0,0.69524254]
[1749400244214,2.64333661,106070.0,106060.0,0.65349917]
[1749400244516,2.64333661,106070.0,106060.0,0.44768451]
[1749400245103,2.64333661,106070.0,106060.0,0.30094878]
[1749400245307,2.64333661,106070.0,106060.0,0.50676344]
[1749400245508,2.64333661,106070.0,106060.0,0.39834234]
[1749400246908,2.21033661,106070.0,106060.0,0.39834234]
[1749400247609,2.21033661,106070.0,106060.0,0.20986344]
[1749400247817,2.21033661,106070.0,106060.0,0.39834234]
[1749400248015,2.01503661,106070.0,106060.0,0.39834234]
[1749400248212,1.87563661,106070.0,106060.0,0.67394234]
[1749400248516,1.97679661,106070.0,106060.0,0.67394234]
[1749400250417,2.11739661,106070.0,106060.0,0.67394234]
[1749400250620,2.11739661,106070.0,106060.0,0.61492698]
[1749400251120,2.11739661,106070.0,106060.0,0.42644808]
[1749400251315,2.11739661,106070.0,106060.0,0.72334808]
[1749400252323,2.11739661,106070.0,106060.0,0.58404808]
[1749400252821,2.11739661,106070.0,106060.0,0.63622698]
[1749400255723,2.11739661,106070.0,106060.0,0.48942768]
[1749400255923,2.11739661,106070.0,106060.0,0.69524234]
[1749400256517,2.11739661,106070.0,106060.0,0.50676344]
[1749400256723,2.11739661,106070.0,106060.0,0.69524244]
[1749400256924,2.11739661,106070.0,106060.0,0.50676344]
[1749400257326,2.21153661,106070.0,106060.0,0.50676344]
[1749400257629,2.21153661,106070.0,106060.0,0.93972344]
[1749400258527,2.21153661,106070.0,106060.0,0.50676344]
[1749400258726,2.21153661,106070.0,106060.0,0.93972344]
[1749400259428,2.21153661,106070.0,106060.0,0.50676344]
[1749400260026,2.21153661,106070.0,106060.0,0.69524244]
[1749400260325,1.87727145,106070.0,106060.0,0.69524244]
[1749400260523,2.21153661,106070.0,106060.0,0.69524244]
[1749400261822,2.11735661,106070.0,106060.0,0.82864244]
[1749400262022,1.87723145,106070.0,106060.0,0.96144244]
[1749400262228,2.11735661,106070.0,106060.0,1.09554244]
[1749400263330,1.73923661,106070.0,106060.0,1.09554244]
[1749400263531,0.90856935,106070.0,106060.0,1.3356676]
[1749400263725,0.90856935,106070.0,106060.0,1.12985294]
[1749400264128,0.90856935,106070.0,106060.0,1.42313292]
[1749400264633,0.90856935,106070.0,106060.0,1.27728956]
[1749400265932,0.80744935,106070.0,106060.0,1.51741472]
[1749400266133,0.90856935,106070.0,106060.0,1.51741472]
[1749400266335,0.44664935,106070.0,106060.0,1.51741472]
[1749400266641,0.54776935,106070.0,106060.0,1.51741472]
[1749400267031,0.5287016,106070.0,106060.0,1.51741472]
[1749400267234,0.1012616,106070.0,106060.0,1.51741472]
[1749400267436,0.1012616,106070.0,106060.0,1.61169472]
[1749400267635,0.1012616,106070.0,106060.0,1.51741472]
[1749400267833,0.1012616,106070.0,106060.0,1.61169472]
[1749400268833,0.1012616,106070.0,106060.0,1.51741472]
[1749400269034,0.4620616,106070.0,106060.0,0.98400958]
[1749400269240,0.89064796,106070.0,106060.0,1.27765383]
[1749400269447,1.16244796,106070.0,106060.0,1.71057383]
[1749400271438,0.9223228,106070.0,106060.0,1.71057383]
[1749400272843,0.7338616,106070.0,106060.0,1.71057383]
[1749400273141,0.8776616,106070.0,106060.0,1.57647383]
[1749400274543,1.0661231,106070.0,106060.0,1.57647383]
[1749400274938,1.0661231,106070.0,106060.0,1.28282958]
[1749400275145,0.8776616,106070.0,106060.0,1.28282958]
[1749400275336,0.5168616,106070.0,106060.0,1.28282958]
[1749400276143,1.0661231,106070.0,106060.0,1.28282958]
[1749400276738,1.0661231,106070.0,106060.0,1.01662958]
[1749400277140,0.7053231,106070.0,106060.0,1.01662958]
[1749400277341,1.0661231,106070.0,106060.0,1.01662958]
[1749400277643,0.8776616,106070.0,106060.0,1.01662958]
[1749400280738,0.5168616,106070.0,106060.0,1.01662958]
[1749400281242,0.5168616,106070.0,106060.0,1.38995474]
[1749400281243,0.1012616,106070.0,106060.0,1.38995474]
[1749400281440,0.0001416,106070.0,106060.0,1.53395474]
[1749400281652,0.1011816,106070.0,106060.0,1.53395474]
[1749400282240,0.1011816,106070.0,106060.0,1.91351627]
[1749400284247,0.1011816,106070.0,106060.0,2.20701418]
[1749400285246,0.1011816,106070.0,106060.0,1.82745265]
[1749400289749,0.1011816,106070.0,106060.0,1.58732749]
[1749400289945,0.4619816,106070.0,106060.0,1.58732749]
[1749400290140,0.8736816,106070.0,106060.0,1.58732749]
[1749400290540,0.5128816,106070.0,106060.0,1.58732749]
[1749400290745,0.8736816,106070.0,106060.0,1.58732749]
[1749400292144,0.4118416,106070.0,106060.0,1.58732749]
[1749400292351,0.5128816,106070.0,106060.0,1.58732749]
[1749400292851,0.2430816,106070.0,106060.0,1.58732749]
[1749400293151,0.1011816,106070.0,106060.0,1.58732749]
[1749400293747,0.4619816,106070.0,106060.0,1.58732749]
[1749400294848,0.4619816,106070.0,106060.0,1.29382958]
[1749400295352,0.7397816,106070.0,106060.0,1.29382958]
[1749400295545,0.6387416,106070.0,106060.0,1.58732749]
[1749400295752,0.1011816,106070.0,106060.0,1.82745265]
[1749400295949,0.0001416,106070.0,106060.0,1.82745265]
[1749400296152,0.46184,106090.0,106080.0,0.1884438]
[1749400296341,0.45494,106090.0,106080.0,1.15508918]
[1749400296545,0.83068,106090.0,106080.0,1.15508918]
[1749400296748,0.83068,106090.0,106080.0,1.51477098]
[1749400296948,0.46988,106090.0,106080.0,1.50477098]
[1749400297155,0.46988,106090.0,106080.0,1.26464582]
[1749400298660,0.47088,106090.0,106080.0,1.26464582]
[1749400298853,0.47288,106090.0,106080.0,1.26464582]
[1749400299855,0.71300516,106090.0,106080.0,0.7055256]
[1749400301750,0.71300516,106090.0,106080.0,1.0024256]
[1749400302563,0.90143116,106090.0,106080.0,1.0024256]
[1749400302863,0.90143116,106090.0,106080.0,1.20775089]
[1749400303050,0.90143116,106090.0,106080.0,1.24545089]
[1749400304754,0.71300516,106090.0,106080.0,1.24545089]
[1749400305560,1.26223116,106090.0,106080.0,0.81265089]
[1749400305759,1.26223116,106090.0,106080.0,1.24537089]
[1749400305962,1.26223116,106090.0,106080.0,1.0400456]
[1749400306161,1.07380516,106090.0,106080.0,1.33376582]
[1749400307155,0.71300516,106090.0,106080.0,1.33376582]
[1749400308464,1.07380516,106090.0,106080.0,1.33376582]
[1749400309266,1.07380516,106090.0,106080.0,1.53905737]
[1749400309764,1.07380516,106090.0,106080.0,1.24533715]
[1749400310669,1.07380516,106090.0,106080.0,1.24938593]
[1749400314469,0.71300516,106090.0,106080.0,1.24938593]
[1749400314972,0.71300516,106090.0,106080.0,1.04409438]
[1749400315966,0.47288,106090.0,106080.0,1.04409438]
[1749400319161,0.47288,106090.0,106080.0,1.24942919]
[1749400321467,0.37184,106090.0,106080.0,1.24942919]
[1749400321774,0.10396,106090.0,106080.0,1.78481954]
[1749400321975,0.10396,106090.0,106080.0,2.06061954]
[1749400322163,0.01680526,106090.0,106080.0,2.44018107]
[1749400322668,0.6707216,106100.0,106090.0,0.188426]
[1749400322859,0.6227616,106100.0,106090.0,0.76093546]
[1749400323268,0.6227616,106100.0,106090.0,0.8551906]
[1749400323664,0.1011016,106100.0,106090.0,1.45611576]
[1749400324171,0.10096,106110.0,106100.0,0.1884083]
[1749400324359,0.1951,106110.0,106100.0,1.56849539]
[1749400324566,0.1951,106110.0,106100.0,1.32837023]
[1749400324964,0.1951,106110.0,106100.0,1.42262537]
[1749400325167,0.4196416,106120.0,106110.0,0.1883905]
[1749400325358,0.6147416,106120.0,106110.0,0.4852905]
[1749400325557,0.6147416,106120.0,106110.0,0.96972631]
[1749400325762,0.6147416,106120.0,106110.0,0.89662676]
[1749400326067,0.0001416,106120.0,106110.0,1.13675192]
[1749400326265,0.79710739,106140.0,106130.0,0.188355]
[1749400326568,0.89806739,106140.0,106130.0,0.41043278]
[1749400326772,1.23233255,106140.0,106130.0,0.41043278]
[1749400326972,0.5559,106140.0,106130.0,0.52271754]
[1749400327172,0.1951,106140.0,106130.0,0.66561754]
[1749400327472,0.1951,106140.0,106130.0,0.76547675]
[1749400327671,0.60092516,106150.0,106140.0,0.1883373]
[1749400327869,0.5559,106150.0,106140.0,1.35458768]
[1749400328070,0.5559,106150.0,106140.0,1.23804167]
[1749400328275,0.5559,106150.0,106140.0,1.47834028]
[1749400328477,0.5559,106150.0,106140.0,1.30658437]
[1749400328673,0.45494,106150.0,106140.0,1.40062166]
[1749400328871,0.38396,106160.0,106150.0,0.1883195]
[1749400329062,0.4781,106160.0,106150.0,0.4684195]
[1749400329370,0.4781,106160.0,106150.0,0.61432422]
[1749400329674,0.3608,106170.0,106160.0,0.1883018]
[1749400329875,0.5559,106170.0,106160.0,1.7152357]
[1749400330176,0.5559,106170.0,106160.0,1.47511054]
[1749400330368,0.6867,106170.0,106160.0,1.56930354]
[1749400330969,0.6877,106170.0,106160.0,1.56930354]
[1749400331475,0.6877,106170.0,106160.0,1.4235748]
[1749400331974,1.11610916,106170.0,106160.0,0.391093]
[1749400332177,1.61360916,106170.0,106160.0,0.2969]
[1749400332571,1.61360916,106170.0,106160.0,0.4852018]
[1749400333585,1.61360916,106170.0,106160.0,0.2969]
[1749400333968,1.94792632,106170.0,106160.0,0.2969]
[1749400334276,0.1883018,106160.0,106150.0,0.1883152]